bitfinex/quotes_BTCUSD_20250330
["timestamp","ask_amount","ask_price","bid_price","bid_amount"]
[1743304729133,0.0001686,83635.0,83634.0,0.35943816]
[1743304729461,0.0001686,83635.0,83634.0,0.47972299]
[1743304729882,0.0001686,83635.0,83634.0,0.48372299]
[1743304730093,0.0001686,83635.0,83634.0,0.48172299]
[1743304731441,0.0001686,83635.0,83634.0,0.48072299]
[1743304731633,0.0001686,83635.0,83634.0,0.48572299]
[1743304732095,0.0001686,83635.0,83634.0,0.50929389]
[1743304732727,0.0001686,83635.0,83634.0,0.29416821]
[1743304732926,0.0001686,83635.0,83634.0,0.42772821]
[1743304733142,0.0001686,83635.0,83634.0,0.44226906]
[1743304733570,0.0001686,83635.0,83634.0,0.61904958]
[1743304735475,0.0001686,83635.0,83634.0,0.59547868]
[1743304736439,0.0001686,83635.0,83634.0,0.71576351]
[1743304738314,0.0001686,83635.0,83634.0,0.59547868]
[1743304745822,0.0001686,83635.0,83634.0,0.46191868]
[1743304746061,0.0001686,83635.0,83634.0,0.59547868]
[1743304747099,0.0001686,83635.0,83634.0,0.67567868]
[1743304748677,0.0001686,83635.0,83634.0,0.97567868]
[1743304748855,0.0001686,83635.0,83634.0,1.14256351]
[1743304751198,0.002,83649.0,83648.0,0.011954]
[1743304751410,0.002,83649.0,83648.0,0.41636067]
[1743304751541,0.002,83649.0,83648.0,0.42781013]
[1743304751753,0.002,83649.0,83648.0,0.47298214]
[1743304752288,0.002,83649.0,83648.0,0.71207914]
[1743304752488,0.002,83649.0,83648.0,0.75867914]
[1743304752699,0.003,83649.0,83648.0,0.75867914]
[1743304752936,0.003,83649.0,83648.0,0.76067914]
[1743304753511,0.002,83649.0,83648.0,0.76067914]
[1743304753710,0.002,83649.0,83648.0,0.75867914]
[1743304753935,0.00190023,83649.0,83648.0,0.77068169]
[1743304755786,0.00190023,83649.0,83648.0,0.77268169]
[1743304758553,0.00190023,83649.0,83648.0,0.79650856]
[1743304762412,0.00190023,83649.0,83648.0,0.79450856]
[1743304762614,0.00190023,83649.0,83648.0,0.79850856]
[1743304762828,0.00190023,83649.0,83648.0,0.80450856]
[1743304763149,0.00190023,83649.0,83648.0,0.80484576]
[1743304763507,0.00206883,83649.0,83648.0,0.80484576]
[1743304767459,0.00206883,83649.0,83648.0,0.79284321]
[1743304768068,0.00206883,83649.0,83648.0,0.6674712]
[1743304768266,0.00206883,83649.0,83648.0,0.46348433]
[1743304768495,0.00206883,83649.0,83648.0,0.59700433]
[1743304786624,0.00206883,83649.0,83648.0,0.34595333]
[1743304786815,0.25311683,83649.0,83648.0,0.21243333]
[1743304787027,0.25311683,83649.0,83648.0,0.34595333]
[1743304787253,0.25311683,83649.0,83648.0,0.21243333]
[1743304790505,0.00206883,83649.0,83648.0,0.21243333]
[1743304791227,0.25311683,83649.0,83648.0,0.21243333]
[1743304792426,0.00206883,83649.0,83648.0,0.21243333]
[1743304792740,0.25311683,83649.0,83648.0,0.21243333]
[1743304799895,0.25311683,83649.0,83648.0,0.24702866]
[1743304800744,0.25311683,83649.0,83648.0,0.21243333]
[1743304801822,0.25311683,83649.0,83648.0,0.19789248]
[1743304803164,0.25311683,83649.0,83648.0,0.18789248]
[1743304803364,0.25311683,83649.0,83648.0,0.19689248]
[1743304804573,0.25311683,83649.0,83648.0,0.18789248]
[1743304804892,0.25311683,83649.0,83648.0,0.19189248]
[1743304805865,0.25311683,83649.0,83648.0,0.19389248]
[1743304806938,0.25311683,83649.0,83648.0,0.01778666]
[1743304807370,0.25311683,83649.0,83648.0,0.0063372]
[1743304809321,0.00206883,83649.0,83648.0,0.02087805]
[1743304809500,0.00206883,83649.0,83648.0,0.25997505]
[1743304809735,0.00206883,83649.0,83648.0,0.27192905]
[1743304809929,0.00206883,83649.0,83648.0,0.03232555]
[1743304810182,0.00206883,83649.0,83648.0,0.27142255]
[1743304810306,0.00206883,83649.0,83648.0,0.2948259]
[1743304810507,0.00206883,83649.0,83648.0,0.3067799]
[1743304810735,0.00206883,83649.0,83648.0,0.36207655]
[1743304811119,0.00206883,83649.0,83648.0,0.12297955]
[1743304811518,0.00206883,83649.0,83648.0,0.11102555]
[1743304812690,0.00206883,83649.0,83648.0,0.28713137]
[1743304817321,0.00206883,83649.0,83648.0,0.53818237]
[1743304824075,0.00206883,83649.0,83648.0,0.67170237]
[1743304824574,0.00206883,83649.0,83648.0,0.7919872]
[1743304825244,0.00206883,83649.0,83648.0,0.67170237]
[1743304827239,0.00340377,83657.0,83656.0,0.251027]
[1743304827465,0.00340377,83657.0,83656.0,0.26556785]
[1743304827701,0.00340377,83657.0,83656.0,0.35279658]
[1743304827955,0.00340377,83657.0,83656.0,0.43828334]
[1743304828387,0.00340377,83657.0,83656.0,0.35479658]
[1743304828588,0.01582964,83657.0,83656.0,0.02796958]
[1743304828791,0.00387664,83657.0,83656.0,0.02796958]
[1743304828951,0.24294764,83657.0,83656.0,0.01654085]
[1743304829147,0.25490064,83657.0,83656.0,0.02595285]
[1743304829371,0.00387664,83657.0,83656.0,0.03790585]
[1743304829573,0.00387664,83657.0,83656.0,0.04090585]
[1743304829747,0.00387664,83657.0,83656.0,0.02895285]
[1743304831350,0.00387664,83657.0,83656.0,0.03837704]
[1743304833208,0.25490064,83657.0,83656.0,0.21448286]
[1743304833859,0.00387664,83657.0,83656.0,0.21448286]
[1743304834412,0.00387664,83657.0,83656.0,0.21482006]
[1743304834771,0.00387664,83657.0,83656.0,0.46584706]
[1743304834772,0.00404524,83657.0,83656.0,0.46584706]
[1743304835377,0.00404524,83657.0,83656.0,0.48960745]
[1743304836002,0.00404524,83657.0,83656.0,0.46584706]
[1743304841158,0.00404524,83657.0,83656.0,0.47749988]
[1743304841959,0.00404524,83657.0,83656.0,0.46584706]
[1743304857084,0.00404524,83657.0,83656.0,0.54784706]
[1743304860649,0.00404524,83657.0,83656.0,0.59314706]
[1743304860870,0.00404524,83657.0,83656.0,0.64836099]
[1743304862497,0.00404524,83657.0,83656.0,0.59314706]
[1743304862676,0.00404524,83657.0,83656.0,0.72662706]
[1743304863323,0.00404524,83657.0,83656.0,0.72362706]
[1743304863537,0.00404524,83657.0,83656.0,0.72862706]
[1743304863920,0.00404524,83657.0,83656.0,0.73262706]
[1743304864116,0.00404524,83657.0,83656.0,0.85291189]
[1743304865480,0.00404524,83657.0,83656.0,0.73262706]
[1743304869196,0.00404524,83657.0,83656.0,1.03262706]
[1743304870852,0.00404524,83657.0,83656.0,0.89914706]
[1743304871076,0.00404524,83657.0,83656.0,1.03262706]
[1743304874306,0.00404524,83657.0,83656.0,0.90532706]
[1743304875928,0.00404524,83657.0,83656.0,0.93164652]
[1743304876129,0.00404524,83657.0,83656.0,0.90532706]
[1743304883831,0.00404524,83657.0,83656.0,0.77184706]
[1743304883980,0.00404524,83657.0,83656.0,0.90532706]
[1743304885197,0.00404524,83657.0,83656.0,0.60532706]
[1743304886594,0.00404524,83657.0,83656.0,0.68532706]
[1743304886799,0.00404524,83657.0,83656.0,0.80561189]
[1743304894669,0.00404524,83657.0,83656.0,1.15361189]
[1743304900545,0.00404524,83657.0,83656.0,1.03332706]
[1743304903045,0.00404524,83657.0,83656.0,0.95332706]
[1743304903283,0.00404524,83657.0,83656.0,0.90532706]
[1743304904161,0.00404524,83657.0,83656.0,0.90528706]
[1743304906995,0.00404524,83657.0,83656.0,0.77184706]
[1743304907208,0.00404524,83657.0,83656.0,0.21823221]
[1743304907400,0.00404524,83657.0,83656.0,0.35167221]
[1743304907780,0.00404524,83657.0,83656.0,0.36621306]
[1743304919999,0.00404524,83657.0,83656.0,0.44891306]
[1743304923345,0.0039942,83657.0,83656.0,0.56919789]
[1743304925191,0.0039942,83657.0,83656.0,0.48649789]
[1743304926237,0.0039942,83657.0,83656.0,0.36621306]
[1743304932710,0.0039942,83657.0,83656.0,0.35426006]
[1743304936086,0.0039942,83657.0,83656.0,0.60528706]
[1743304936285,0.0039942,83657.0,83656.0,0.35426006]
[1743304936866,0.0039942,83657.0,83656.0,0.59333406]
[1743304937064,0.0039942,83657.0,83656.0,0.60528706]
[1743304938045,0.0039942,83657.0,83656.0,0.68318787]
[1743304939513,0.0039942,83657.0,83656.0,0.60528706]
[1743304941585,2e-07,83657.0,83656.0,0.90528706]
[1743304941823,2e-07,83657.0,83656.0,0.98718706]
[1743304944800,0.0001688,83665.0,83664.0,0.02649285]
[1743304944997,0.0001688,83665.0,83664.0,0.02654004]
[1743304945197,0.0001688,83665.0,83664.0,0.10516535]
[1743304945409,0.0001688,83665.0,83664.0,0.34421635]
[1743304946547,0.0001688,83665.0,83664.0,0.34621635]
[1743304947091,0.0001688,83665.0,83664.0,0.35021635]
[1743304947299,0.0001688,83665.0,83664.0,0.34421635]
[1743304947856,0.0001688,83665.0,83664.0,0.48765635]
[1743304950805,0.0001688,83665.0,83664.0,0.66376197]
[1743304951338,0.0001688,83665.0,83664.0,0.60481057]
[1743304953449,0.0001688,83665.0,83664.0,0.71119149]
[1743304965965,0.0001688,83665.0,83664.0,0.75729149]
[1743304975519,0.0001688,83665.0,83664.0,0.62929149]
[1743304975807,0.0001688,83665.0,83664.0,0.49585149]
[1743304975966,0.0001688,83665.0,83664.0,0.62925149]
[1743304976582,0.0001688,83665.0,83664.0,0.74953632]
[1743304977666,0.0001688,83665.0,83664.0,0.62925149]
[1743304977875,0.0001688,83665.0,83664.0,0.71035149]
[1743304978274,0.0001688,83665.0,83664.0,1.01035149]
[1743304978476,0.0001688,83665.0,83664.0,1.05985149]
[1743304982881,0.0001688,83681.0,83678.0,0.01195]
[1743304983117,0.0001688,83681.0,83678.0,0.32339428]
[1743304983308,0.0001688,83681.0,83678.0,0.3430797]
[1743304983915,0.0001688,83681.0,83678.0,0.5820907]
[1743304985219,0.0001688,83681.0,83678.0,0.5840907]
[1743304985463,0.0001688,83681.0,83678.0,0.66879137]
[1743304985839,0.0001688,83681.0,83678.0,0.67279137]
[1743304986586,0.0001688,83681.0,83678.0,0.5880907]
[1743304986785,0.0021686,83679.0,83678.0,0.5880907]
[1743304988411,0.0021686,83679.0,83678.0,0.5860907]
[1743304988611,0.0021686,83679.0,83678.0,0.5820907]
[1743304988817,0.0021686,83679.0,83678.0,0.5860907]
[1743304989016,0.0021686,83679.0,83678.0,0.5920907]
[1743304990223,0.0021686,83679.0,83678.0,0.69135297]
[1743304990624,0.0021686,83679.0,83678.0,0.5920907]
[1743304990825,0.0021686,83679.0,83678.0,0.61647902]
[1743304992880,1e-07,83684.0,83681.0,0.539002]
[1743304993082,1e-07,83684.0,83683.0,0.56548685]
[1743304993299,1e-07,83684.0,83683.0,0.68577168]
[1743304993705,1e-07,83684.0,83683.0,0.70538524]
[1743304994356,1e-07,83684.0,83683.0,0.71846041]
[1743304994927,1e-07,83684.0,83683.0,0.58510041]
[1743304995279,1e-07,83684.0,83683.0,0.72346041]
[1743304995934,1e-07,83684.0,83683.0,0.72946041]
[1743304996142,1e-07,83684.0,83683.0,0.59110041]
[1743304996345,1e-07,83684.0,83683.0,0.58510041]
[1743304996548,1e-07,83684.0,83683.0,0.71846041]
[1743304996747,1e-07,83684.0,83683.0,0.42446041]
[1743304997169,0.1270001,83684.0,83683.0,0.44006299]
[1743304997342,1e-07,83684.0,83683.0,0.44006299]
[1743304997542,1e-07,83684.0,83683.0,0.45960384]
[1743304998124,1e-07,83684.0,83683.0,0.57988867]
[1743304998999,1e-07,83684.0,83683.0,0.45994104]
[1743305000450,1e-07,83684.0,83683.0,0.20899504]
[1743305008136,0.0119491,83684.0,83683.0,0.20899504]
[1743305008334,1e-07,83684.0,83683.0,0.20899504]
[1743305009168,0.0119491,83684.0,83683.0,0.34235504]
[1743305009368,0.0927491,83684.0,83683.0,0.32781419]
[1743305009530,0.0927491,83684.0,83683.0,0.19445419]
[1743305010204,0.1425491,83684.0,83683.0,0.03095076]
[1743305010614,0.1425491,83684.0,83683.0,0.0113372]
[1743305010820,0.1425491,83684.0,83683.0,0.0063372]
[1743305011095,0.1425491,83684.0,83683.0,0.0113372]
[1743305011689,0.1425491,83684.0,83683.0,0.0063372]
[1743305011919,0.141152,83665.0,83664.0,0.00038439]
[1743305012092,0.3802,83665.0,83664.0,0.00038439]
[1743305012330,0.3802,83665.0,83664.0,0.01683495]
[1743305012492,0.3802,83665.0,83664.0,0.00038439]
[1743305013297,0.41183719,83665.0,83664.0,0.00038439]
[1743305013849,0.43612706,83665.0,83664.0,0.00038439]
[1743305015036,0.43612706,83665.0,83664.0,0.00238439]
[1743305015439,0.43612706,83665.0,83664.0,0.00038439]
[1743305015670,0.43612706,83665.0,83664.0,0.00438439]
[1743305015853,0.43612706,83665.0,83664.0,0.00038439]
[1743305016258,0.43612706,83665.0,83664.0,0.00338439]
[1743305017078,0.73612706,83665.0,83664.0,3.9e-07]
[1743305017482,0.597821,83658.0,83648.0,0.0003372]
[1743305017672,0.677421,83658.0,83657.0,0.00038463]
[1743305019859,0.677421,83658.0,83657.0,0.00138463]
[1743305021362,0.68638767,83658.0,83657.0,0.00138463]
[1743305030474,0.70513067,83658.0,83657.0,0.00138463]
[1743305033017,0.74075143,83658.0,83657.0,0.00138463]
[1743305033426,0.72200843,83658.0,83657.0,0.00138463]
[1743305034675,0.72200843,83658.0,83657.0,6.3e-07]
[1743305036083,0.72200843,83658.0,83657.0,0.00033803]
[1743305036282,0.72200843,83658.0,83657.0,0.0003374]
[1743305037937,0.72700843,83658.0,83657.0,0.0003374]
[1743305038503,0.44757376,83657.0,83656.0,6e-07]
[1743305038700,0.44757376,83657.0,83656.0,9.715e-05]
[1743305039243,0.52407376,83657.0,83656.0,1.5e-07]
[1743305041137,0.52907376,83657.0,83656.0,1.5e-07]
[1743305044532,0.56375799,83657.0,83656.0,1.5e-07]
[1743305045577,0.251097,83633.0,83632.0,0.0003374]
[1743305045927,0.251097,83633.0,83632.0,0.00081027]
[1743305046864,0.251097,83633.0,83632.0,0.01181027]
[1743305048290,0.26293063,83633.0,83632.0,0.01181027]
[1743305050398,0.26293063,83633.0,83632.0,0.01171014]
[1743305050796,0.26293063,83633.0,83632.0,0.09271014]
[1743305051013,0.02405519,83640.0,83639.0,0.011956]
[1743305051197,0.011955,83645.0,83644.0,0.081]
[1743305051396,0.251062,83645.0,83644.0,0.0977694]
[1743305051605,0.251062,83645.0,83644.0,0.081]
[1743305052571,0.251062,83645.0,83644.0,0.084]
[1743305054481,0.26329766,83645.0,83644.0,0.085]
[1743305060233,0.26346646,83645.0,83644.0,0.085]
[1743305061824,0.27697151,83645.0,83644.0,0.085]
[1743305062005,0.26346646,83645.0,83644.0,0.004]
[1743305070189,0.56346646,83645.0,83644.0,0.004]
[1743305070486,0.59822684,83645.0,83644.0,0.004]
[1743305070717,0.73166684,83645.0,83644.0,0.004]
[1743305071170,0.73166684,83645.0,83644.0,0.003]
[1743305071653,0.251093,83634.0,83633.0,0.16350343]
[1743305071983,0.251093,83634.0,83633.0,0.18022354]
[1743305073086,0.251093,83634.0,83633.0,0.18322354]
[1743305073287,0.251093,83634.0,83633.0,0.18522354]
[1743305073774,0.251093,83634.0,83633.0,0.02172011]
[1743305074115,0.251093,83634.0,83633.0,0.005]
[1743305077300,0.26027076,83634.0,83633.0,0.005]
[1743305078442,0.011957,83633.0,83632.0,0.00071014]
[1743305079910,0.011957,83633.0,83632.0,0.00271014]
[1743305082131,0.091757,83633.0,83632.0,0.00271014]
[1743305082256,0.12649208,83633.0,83632.0,0.00271014]
[1743305083053,0.42649208,83633.0,83632.0,1.4e-07]
[1743305083274,0.551099,83632.0,83631.0,5.4e-07]
[1743305083488,0.68583408,83632.0,83631.0,8.5e-07]
[1743305083690,0.684405,83630.0,83629.0,2.5e-07]
[1743305083838,0.251189,83602.0,83601.0,0.0023374]
[1743305084043,0.251189,83602.0,83601.0,0.01918874]
[1743305084641,0.251189,83602.0,83601.0,0.0023374]
[1743305085281,0.25129632,83602.0,83601.0,0.0023374]
[1743305085716,0.25129632,83602.0,83601.0,0.0053374]
[1743305085888,0.25129632,83602.0,83601.0,0.0073374]
[1743305087384,0.26355205,83602.0,83601.0,0.0073374]
[1743305092994,0.26355205,83602.0,83601.0,0.0043012]
[1743305095936,0.26355205,83602.0,83601.0,0.0046388]
[1743305106269,0.25129632,83602.0,83601.0,0.0837388]
[1743305106607,0.25129632,83602.0,83601.0,0.41201728]
[1743305106608,0.00010732,83602.0,83601.0,0.41201728]
[1743305107141,0.00010732,83602.0,83601.0,0.40005628]
[1743305107340,0.00010732,83602.0,83601.0,0.53353628]
[1743305107585,0.00010732,83602.0,83601.0,0.54549728]
[1743305107757,0.00027612,83602.0,83601.0,0.54549728]
[1743305107961,0.00027612,83602.0,83601.0,0.29430528]
[1743305108577,0.25065912,83605.0,83603.0,0.0825]
[1743305108861,0.25065912,83605.0,83601.0,0.21520528]
[1743305108862,0.239217,83606.0,83605.0,0.09704085]
[1743305109163,0.251177,83606.0,83605.0,0.11408648]
[1743305109933,0.01196,83606.0,83605.0,0.11408648]
[1743305110081,0.01196,83607.0,83606.0,0.01454085]
[1743305110669,0.01196,83607.0,83606.0,0.03158648]
[1743305111917,0.01196,83607.0,83606.0,0.19508991]
[1743305112123,0.01196,83607.0,83606.0,0.19608991]
[1743305112889,0.01196,83607.0,83606.0,0.19808991]
[1743305116181,0.25117,83609.0,83606.0,0.19808991]
[1743305116313,0.251173,83608.0,83606.0,0.19808991]
[1743305116715,0.01196,83608.0,83606.0,0.19808991]
[1743305117142,0.01196,83608.0,83606.0,0.19708991]
[1743305117346,0.01196,83608.0,83606.0,0.19508991]
[1743305117521,0.251174,83607.0,83606.0,0.19508991]
[1743305118062,0.251174,83607.0,83606.0,0.19708991]
[1743305118268,0.01196,83607.0,83606.0,0.19808991]
[1743305118676,0.01196,83607.0,83606.0,0.19708991]
[1743305118896,0.01196,83608.0,83606.0,0.19708991]
[1743305119102,0.01196,83607.0,83606.0,0.19908991]
[1743305119237,0.2513428,83607.0,83606.0,0.19708991]
[1743305119437,0.2513428,83607.0,83606.0,0.20108991]
[1743305119885,0.2513428,83607.0,83606.0,0.19708991]
[1743305120050,0.2513428,83607.0,83606.0,0.20008991]
[1743305120450,0.2513428,83607.0,83606.0,0.19708991]
[1743305121071,0.2513428,83607.0,83606.0,0.20108991]
[1743305121283,0.0001688,83607.0,83606.0,0.20108991]
[1743305121988,0.2393828,83607.0,83606.0,0.20108991]
[1743305122194,0.0001688,83607.0,83606.0,0.20108991]
[1743305122398,0.0001688,83607.0,83606.0,0.58076691]
[1743305122720,0.0001688,83607.0,83606.0,0.32958991]
[1743305123485,0.0001688,83607.0,83606.0,0.56880691]
[1743305123688,0.0001688,83607.0,83606.0,0.58076691]
[1743305132739,0.0001688,83607.0,83606.0,0.57676691]
[1743305133153,0.0001688,83607.0,83606.0,0.57776691]
[1743305133378,0.0001688,83607.0,83606.0,0.58276691]
[1743305135424,0.0001688,83607.0,83606.0,0.60655336]
[1743305138008,0.0001688,83607.0,83606.0,0.73999336]
[1743305138599,0.0001688,83607.0,83606.0,0.71620691]
[1743305145912,0.0001688,83607.0,83606.0,0.58276691]
[1743305146165,0.0001688,83607.0,83606.0,0.71620691]
[1743305148565,0.0001688,83607.0,83606.0,0.18854906]
[1743305148772,0.0001688,83607.0,83606.0,0.20050906]
[1743305150361,0.0001688,83607.0,83606.0,0.21504991]
[1743305150559,0.0001688,83607.0,83606.0,0.20308991]
[1743305155877,0.0001688,83607.0,83606.0,0.21504991]
[1743305156900,0.0001688,83607.0,83606.0,0.29224991]
[1743305157161,0.0001688,83607.0,83606.0,0.33904991]
[1743305158773,0.0001688,83629.0,83628.0,0.251111]
[1743305158975,0.0001688,83629.0,83628.0,0.42898648]
[1743305159198,0.0001688,83629.0,83628.0,0.44588276]
[1743305160014,0.0001688,83629.0,83628.0,0.44600152]
[1743305160420,0.0011688,83629.0,83628.0,0.44600152]
[1743305161005,0.0011688,83629.0,83628.0,0.54777691]
[1743305161207,0.0011688,83629.0,83628.0,0.45895428]
[1743305161836,0.0011688,83629.0,83628.0,0.44700152]
[1743305162199,0.2403198,83629.0,83628.0,0.18134967]
[1743305162396,0.0011688,83629.0,83628.0,0.31478967]
[1743305162779,0.0001688,83629.0,83628.0,0.31478967]
[1743305162928,0.0001688,83629.0,83628.0,0.32574667]
[1743305163291,0.0001688,83629.0,83628.0,0.34028752]
[1743305163956,0.0001688,83629.0,83628.0,0.34228752]
[1743305165610,0.0001688,83629.0,83628.0,0.46257235]
[1743305165816,0.0001688,83629.0,83628.0,0.53977235]
[1743305166025,0.0001688,83629.0,83628.0,0.46728752]
[1743305166620,0.0001688,83629.0,83628.0,0.46528752]
[1743305166834,0.0001688,83629.0,83628.0,0.46428752]
[1743305166988,0.0001688,83629.0,83628.0,0.46728752]
[1743305167188,0.0001688,83629.0,83628.0,0.47028752]
[1743305167506,0.0001688,83629.0,83628.0,0.46428752]
[1743305167868,0.0001688,83629.0,83628.0,0.47028752]
[1743305168748,0.0001688,83629.0,83628.0,0.47428752]
[1743305168911,0.0001688,83629.0,83628.0,0.59457235]
[1743305169124,0.0001688,83629.0,83628.0,0.59057235]
[1743305169332,0.0001688,83629.0,83628.0,0.47028752]
[1743305169542,0.0001688,83629.0,83628.0,0.32230667]
[1743305169723,0.0001688,83629.0,83628.0,0.46170667]
[1743305169942,0.0001688,83629.0,83628.0,0.47624752]
[1743305172902,0.0001688,83629.0,83628.0,0.34284752]
[1743305173083,0.0001688,83629.0,83628.0,0.47624752]
[1743305173661,0.0001688,83629.0,83628.0,0.34284752]
[1743305173868,0.0001688,83629.0,83628.0,0.47624752]
[1743305175547,0.0001688,83629.0,83628.0,0.32574967]
[1743305175721,0.0001688,83629.0,83628.0,0.34029052]
[1743305176473,0.0001688,83629.0,83628.0,0.33429052]
[1743305176681,0.0001688,83629.0,83628.0,0.32829052]
[1743305176884,0.0001688,83629.0,83628.0,0.20089052]
[1743305177085,0.2393198,83629.0,83628.0,0.33829052]
[1743305177389,0.2393198,83629.0,83628.0,0.32829052]
[1743305177544,0.0001688,83629.0,83628.0,0.33229052]
[1743305178333,0.2393198,83629.0,83628.0,0.33229052]
[1743305178458,0.2393198,83629.0,83628.0,0.33829052]
[1743305179068,0.2512768,83629.0,83628.0,0.33829052]
[1743305180627,0.2512768,83629.0,83628.0,0.19034967]
[1743305181631,0.2512768,83629.0,83628.0,0.18434967]
[1743305182075,0.2512768,83629.0,83628.0,0.18334967]
[1743305182590,0.2512768,83629.0,83628.0,0.18434967]
[1743305188803,0.3751768,83629.0,83628.0,0.18434967]
[1743305189532,0.3751768,83629.0,83628.0,0.18334967]
[1743305191126,0.3751768,83629.0,83628.0,0.02001504]
[1743305191451,0.3751768,83629.0,83628.0,0.00011876]
[1743305191672,0.3751768,83629.0,83628.0,0.00211876]
[1743305195158,0.3751768,83629.0,83628.0,0.00011876]
[1743305195757,0.6751768,83629.0,83628.0,0.00011876]
[1743305198008,0.6751768,83629.0,83628.0,7.6e-07]
[1743305198195,0.67375487,83629.0,83628.0,7.6e-07]
[1743305198466,0.251171,83608.0,83607.0,0.0003374]
[1743305198642,0.380171,83608.0,83607.0,0.0004784]
[1743305200371,0.68897112,83608.0,83607.0,0.0014784]
[1743305201625,0.68897112,83608.0,83607.0,0.0034784]
[1743305201887,0.78897112,83608.0,83607.0,0.0034784]
[1743305202141,0.78897112,83608.0,83607.0,0.000141]
[1743305202398,0.01196,83606.0,83605.0,2.2e-05]
[1743305202594,0.14096,83606.0,83605.0,2.3e-07]
[1743305203337,0.551195,83600.0,83599.0,8.4e-07]
[1743305203545,0.764235,83600.0,83599.0,0.0001421]
[1743305203961,0.764235,83600.0,83599.0,1e-07]
[1743305204551,0.551202,83598.0,83597.0,5e-07]
[1743305204779,0.630802,83598.0,83597.0,5e-07]
[1743305206054,0.633802,83598.0,83597.0,5e-07]
[1743305206250,0.64830705,83598.0,83597.0,5e-07]
[1743305206526,0.659802,83598.0,83597.0,5e-07]
[1743305206712,0.713002,83598.0,83597.0,5e-07]
[1743305207482,0.712002,83598.0,83597.0,5e-07]
[1743305208031,0.715002,83598.0,83597.0,5e-07]
[1743305208239,0.712002,83598.0,83597.0,5e-07]
[1743305208469,0.4144573,83598.0,83597.0,5e-07]
[1743305208677,0.6696593,83598.0,83597.0,5e-07]
[1743305208880,0.6726593,83598.0,83597.0,5e-07]
[1743305213265,1.2426193,83598.0,83597.0,5e-07]
[1743305213679,1.242788,83598.0,83597.0,5e-07]
[1743305213880,1.26154701,83598.0,83597.0,5e-07]
[1743305214317,1.35654701,83598.0,83597.0,5e-07]
[1743305214532,1.49002701,83598.0,83597.0,5e-07]
[1743305214819,1.471268,83598.0,83597.0,5e-07]
[1743305218735,1.337788,83598.0,83597.0,5e-07]
[1743305218957,1.49002577,83598.0,83597.0,5e-07]
[1743305220099,1.471268,83598.0,83597.0,5e-07]
[1743305223345,1.343468,83598.0,83597.0,5e-07]
[1743305223799,1.209988,83598.0,83597.0,5e-07]
[1743305224002,1.084988,83598.0,83597.0,5e-07]
[1743305224415,1.10374483,83598.0,83597.0,5e-07]
[1743305224756,1.084988,83598.0,83597.0,5e-07]
[1743305225008,1.081988,83598.0,83597.0,5e-07]
[1743305225361,1.077988,83598.0,83597.0,5e-07]
[1743305225560,1.078988,83598.0,83597.0,5e-07]
[1743305225692,1.080988,83598.0,83597.0,5e-07]
[1743305232335,0.511028,83598.0,83597.0,5e-07]
[1743305236211,0.545826,83598.0,83597.0,5e-07]
[1743305236661,0.511028,83598.0,83597.0,5e-07]
[1743305237542,0.54583054,83598.0,83597.0,5e-07]
[1743305238946,0.56458537,83598.0,83597.0,5e-07]
[1743305239538,0.52978283,83598.0,83597.0,5e-07]
[1743305240327,0.511028,83598.0,83597.0,5e-07]
[1743305241960,0.54582149,83598.0,83597.0,5e-07]
[1743305243865,0.56457635,83598.0,83597.0,5e-07]
[1743305244644,0.52978286,83598.0,83597.0,5e-07]
[1743305244995,0.511028,83598.0,83597.0,5e-07]
[1743305245565,0.5458257,83598.0,83597.0,5e-07]
[1743305248104,0.56458065,83598.0,83597.0,5e-07]
[1743305248306,0.5458257,83598.0,83597.0,5e-07]
[1743305248931,0.5458257,83598.0,83597.0,0.0465005]
[1743305249092,0.2543707,83598.0,83597.0,0.0465005]
[1743305249294,0.5543707,83598.0,83597.0,0.0465005]
[1743305249499,0.0031687,83598.0,83597.0,0.06361167]
[1743305249859,0.3151307,83598.0,83597.0,0.0465005]
[1743305252973,0.3121307,83598.0,83597.0,0.0465005]
[1743305253290,0.3151307,83598.0,83597.0,0.0465005]
[1743305258273,0.3146107,83598.0,83597.0,5e-07]
[1743305258476,0.32811575,83598.0,83597.0,5e-07]
[1743305258676,0.3146107,83598.0,83597.0,5e-07]
[1743305258876,0.43110307,83598.0,83597.0,5e-07]
[1743305259079,0.44985763,83598.0,83597.0,5e-07]
[1743305259566,0.47660307,83598.0,83597.0,5e-07]
[1743305260595,0.62860307,83598.0,83597.0,5e-07]
[1743305260799,0.78060307,83598.0,83597.0,5e-07]
[1743305261794,0.78077177,83598.0,83597.0,5e-07]
[1743305262538,0.65357177,83598.0,83597.0,5e-07]
[1743305266655,0.6187794,83598.0,83597.0,5e-07]
[1743305267300,0.63228445,83598.0,83597.0,5e-07]
[1743305267505,0.6187794,83598.0,83597.0,5e-07]
[1743305268854,0.65356557,83598.0,83597.0,5e-07]
[1743305269769,0.35391687,83598.0,83597.0,5e-07]
[1743305269997,0.3191307,83598.0,83597.0,5e-07]
[1743305271451,0.0151307,83598.0,83597.0,5e-07]
[1743305271896,0.3151307,83598.0,83597.0,5e-07]
[1743305272522,0.33388572,83598.0,83597.0,5e-07]
[1743305274882,0.3151307,83598.0,83597.0,5e-07]
[1743305277798,0.33388561,83598.0,83597.0,5e-07]
[1743305278159,0.3151307,83598.0,83597.0,5e-07]
[1743305279827,0.34991761,83598.0,83597.0,5e-07]
[1743305280260,0.42521761,83598.0,83597.0,5e-07]
[1743305280746,0.34991761,83598.0,83597.0,5e-07]
[1743305281710,0.34791761,83598.0,83597.0,5e-07]
[1743305281910,0.35091761,83598.0,83597.0,5e-07]
[1743305282156,0.34691761,83598.0,83597.0,5e-07]
[1743305282356,0.34791761,83598.0,83597.0,5e-07]
[1743305282681,0.35091761,83598.0,83597.0,5e-07]
[1743305283057,0.34991761,83598.0,83597.0,5e-07]
[1743305283299,0.35091761,83598.0,83597.0,5e-07]
[1743305288081,0.004,83598.0,83597.0,5e-07]
[1743305288721,0.015962,83598.0,83597.0,5e-07]
[1743305289056,0.03471716,83598.0,83597.0,5e-07]
[1743305289975,0.33471716,83598.0,83597.0,5e-07]
[1743305290390,0.315962,83598.0,83597.0,5e-07]
[1743305291145,0.8212,83599.0,83597.0,5e-07]
[1743305291608,0.011962,83598.0,83597.0,5e-07]
[1743305293123,0.311962,83598.0,83597.0,5e-07]
[1743305293312,0.312962,83598.0,83597.0,5e-07]
[1743305294610,0.33171696,83598.0,83597.0,5e-07]
[1743305294873,0.314962,83598.0,83597.0,5e-07]
[1743305295690,0.3151307,83598.0,83597.0,5e-07]
[1743305298032,0.33388491,83598.0,83597.0,5e-07]
[1743305299556,0.3151307,83598.0,83597.0,5e-07]
[1743305301244,0.3499686,83598.0,83597.0,5e-07]
[1743305303393,0.36872283,83598.0,83597.0,5e-07]
[1743305304762,0.33388493,83598.0,83597.0,5e-07]